Cogmind - Beta 14 @@@ ROGUE MODE // 2024.10.30 @ 21:49:26 Player: Gabe+Kate4EVR Result: Destroyed by KV-JZU(R) with Subdweller Beam Cannon Performance ------------- Evolutions (0) 0 Regions Visited (2) 400 Robots Destroyed (5) 25 Value Destroyed (171) 171 Prototype IDs (0) 0 Alien Tech Used (0) 0 Bonus (0) 0 TOTAL SCORE: 596 Bonus ------- None Cogmind --------- Core Integrity 0/250 Matter 266/300 Energy 226/250 System Corruption 10% Temperature Cool (9) Movement Walking (190) Ox1 Location -10/Subcaves Parts ------- > --- POWER (1) -------- Ion Engine > --- PROPULSION (2) --- Aluminum Leg (fused) Aluminum Leg > --- UTILITY (2) ------ Large Storage Unit > --- WEAPON (2) ------- EM Pulse Gun Small Laser > --- INVENTORY (15) --- Light Ion Engine Aluminum Leg Aluminum Leg Aluminum Leg Aluminum Leg Small Laser Small Laser Grenade Launcher Peak State ------------ > --- POWER ------------ Ion Engine > --- PROPULSION ------- Aluminum Leg Aluminum Leg > --- UTILITY ---------- Small Storage Unit Hacking Suite > --- WEAPON ----------- EM Pulse Gun Small Laser > --- INVENTORY -------- Light Ion Engine Small Laser [Rating: 9] Favorites ----------- Power Ion Engine Engine Ion Engine Propulsion Aluminum Leg Leg Aluminum Leg Utility Improved Heat Sink Device Improved Heat Sink Storage Large Storage Unit Hackware Hacking Suite Weapon Small Laser Energy Gun Small Laser Launcher Grenade Launcher Build | -11 -10 -10 ------- Run | Yrd Mat Sub Slots Evolved . | . . . Power . | . . . Propulsion . | . . . Utility . | . . . Weapon . | . . . Parts Attached 17 | 7 9 1 Power 2 | 2 . . Engine 2 | 2 . . Core . | . . . Reactor . | . . . Propulsion 4 | 2 2 . Treads . | . . . Leg 4 | 2 2 . Wheel . | . . . Hover . | . . . Flight . | . . . Utility 4 | 1 3 . Device 1 | . 1 . Storage 2 | 1 1 . Processor . | . . . Hackware 1 | . 1 . Protection . | . . . Artifact . | . . . Weapon 7 | 2 4 1 Energy Gun 6 | 2 3 1 Energy Cannon . | . . . Ballistic Gun . | . . . Ballistic Cannon . | . . . Launcher 1 | . 1 . Special Weapon . | . . . Impact Weapon . | . . . Slashing Weapon . | . . . Piercing Weapon . | . . . Special Melee Weapon . | . . . Unidentified Prototypes . | . . . Corrupted Parts 3 | . 3 . System Corruption 10 | . 10 . Parts Lost 3 | . 1 2 Power . | . . . Propulsion . | . . . Utility 2 | . 1 1 Weapon 1 | . . 1 Highest Loss Streak 2 | . 1 2 To Critical Strikes . | . . . Average Slot Usage (%) 97 | . 97 95 Engine 14 | . 14 14 Leg 28 | . 28 28 Device 11 | . 11 11 Storage 14 | . 14 14 Energy Gun 26 | . 27 25 Peak Build Rating 9 | 6 9 9 Average Rating 8 | 5 8 8 On Entrance 5 | . 6 9 Naked Turns . | . . . Heaviest Build 30 | 13 30 28 Greatest Support 20 | 20 20 20 Greatest Overweight (x) 1 | . 1 1 Average Overweight (x) . | . . 1 Largest Inventory Capacity 15 | 8 15 15 Average Capacity 12 | 7 12 15 Most Carried 9 | 2 9 9 Average Carried 5 | 1 6 8 Final Capacity 15 | 8 15 15 Final Carried 9 | 2 9 8 Class Distribution -------------------- 87% | Mutant 12% | Scavenger-Mutant Dominant Class ---------------- Mutant | -10/Materials Scavenger-Mutant | -10/Subcaves Resources | -11 -10 -10 ----------- Run | Yrd Mat Sub Matter Collected 346 | 182 138 26 Remotely . | . . . Salvage Created 220 | . 171 49 Parts 12 | . 11 1 Haulers Intercepted . | . . . Recyclers Shooed . | . . . Parts Field Recycled . | . . . Retrieved Matter . | . . . Parts Self-Destructed . | . . . Prevented . | . . . Kills | -11 -10 -10 ------- Run | Yrd Mat Sub Combat Hostiles Destroyed 4 | . 3 1 Guns 3 | . 2 1 AOE 1 | . 1 . Classes Destroyed 3 | . 2 1 Operator 1 | . 1 . Grunt 3 | . 3 . Subdweller 1 | . . 1 Best Kill Streak 2 | . 2 1 Combat Bots Only 2 | . 2 1 Max Kills in Single Turn 1 | . 1 1 Gunslinging . | . . . Exploded 1 | . 1 . Melee . | . . . Uniques/NPCs Destroyed . | . . . Combat | -11 -10 -10 -------- Run | Yrd Mat Sub Hostile Shots Fired 32 | . 15 17 Missed 6 | . 2 4 Damage Taken 561 | . 228 333 Core 250 | . 75 175 Absorbed by Shields . | . . . Core Remaining (%) 100 | 100 . . Volleys Fired 23 | . 12 11 Largest 2 | . 2 2 Hottest 80 | . 80 80 Shots Fired 43 | . 25 18 Gun 42 | . 24 18 Cannon . | . . . Launcher 1 | . 1 . Special . | . . . Kinetic . | . . . Thermal 27 | . 13 14 Explosive 1 | . 1 . Electromagnetic 15 | . 11 4 Robot Hit Streak 25 | . 7 25 Robot Miss Streak 3 | . 3 . Penetration Max . | . . . Secondary Targets . | . . . Shots Hit Robots 34 | . 16 18 Core Hits 12 | . 7 5 Critical Kills . | . . . Critical Parts Destroyed . | . . . Critical Strikes . | . . . Melee Attacks . | . . . Impact . | . . . Slashing . | . . . Piercing . | . . . Sneak Attacks . | . . . Combat Hostiles . | . . . Follow-up Attacks . | . . . Damage Inflicted 447 | . 252 195 Guns 404 | . 209 195 Cannons . | . . . Explosions 43 | . 43 . Melee . | . . . Ramming . | . . . Kinetic . | . . . Thermal 281 | . 131 150 Explosive . | . . . Electromagnetic 166 | . 121 45 Impact . | . . . Slashing . | . . . Piercing . | . . . Highest Corruption 10 | . 10 10 Average Corruption 6 | . 6 10 Corruption Purged . | . . . Corruption Blocked . | . . . Effects 20 | . 17 3 Message Errors 2 | . 2 . Matter Fused 2 | . 2 . Heat Flow Errors 4 | . 3 1 Energy Discharges 6 | . 5 1 Parts Fused 1 | . 1 . Data Loss (minor) 3 | . 3 . Misfires 1 | . 1 . Misdirections 1 | . . 1 Overload Shots . | . . . Overflow Damage . | . . . Projectiles . | . . . Explosions . | . . . Melee . | . . . Knockbacks . | . . . Impact . | . . . Kinetic . | . . . Secondary . | . . . Self-Inflicted Damage 38 | . 38 . Shots 1 | . 1 . Rammed . | . . . Targets Rammed . | . . . Kicked . | . . . Crushed . | . . . Highest Temperature 249 | . 249 104 Average Temperature 102 | . 102 77 Received Heat Transfer 207 | . 126 81 Siege Activations . | . . . Robots Corrupted . | . . . Combat Hostiles . | . . . Parts Fried . | . . . Impact Corruptions . | . . . Robots Melted . | . . . Combat Hostiles . | . . . Parts Melted 1 | . . 1 Heat Transferred 600 | . 250 350 Parts Sabotaged . | . . . Parts Stolen . | . . . Parts Stripped . | . . . Power Chain Reactions 1 | . 1 . Alert | -11 -10 -10 ------- Run | Yrd Mat Sub Peak Influence 87 | . 87 . Initial . | . . . Average 37 | . 42 . Maximum Alert Level . | . . . Low Security (%) 100 | 100 100 . Level 1 . | . . . Level 2 . | . . . Level 3 . | . . . Level 4 . | . . . Level 5 . | . . . High Security . | . . . Max Security . | . . . Squads Dispatched . | . . . Investigation . | . . . Extermination . | . . . Reinforcement . | . . . Assault . | . . . Garrison . | . . . Intercept . | . . . Searches Triggered . | . . . Construction Impeded . | . . . Haulers Reinforced . | . . . Active Scanning Responses . | . . . Cargo Convoy Interrupts . | . . . Stealth | -11 -10 -10 --------- Run | Yrd Mat Sub Distress Signals . | . . . Communications Jammed . | . . . Distress Signals . | . . . Times Spotted 6 | . 4 2 Peak Tracking Total 2 | . 2 2 Tactical Retreats 1 | . 1 . Traps | -11 -10 -10 ------- Run | Yrd Mat Sub Traps Triggered . | . . . Indirectly . | . . . Trap Hack Attempts . | . . . Triggered . | . . . Disarmed . | . . . Reprogrammed . | . . . Reused . | . . . Traps Extracted . | . . . Installed . | . . . Triggered . | . . . Machines | -11 -10 -10 ---------- Run | Yrd Mat Sub Machines Disabled . | . . . Max in Single Turn . | . . . Machines Repaired . | . . . Machines Dismantled . | . . . Machines Sabotaged . | . . . Overloaded Fab Kills . | . . . Hacking | -11 -10 -10 --------- Run | Yrd Mat Sub Machines Accessed 1 | . 1 . Terminals . | . . . Fabricators . | . . . Repair Stations . | . . . Recycling Units 1 | . 1 . Scanalyzers . | . . . Garrison Access . | . . . Total Hacks 4 | . 4 . Successful 1 | . 1 . Failed 3 | . 3 . Catastrophic 1 | . 1 . Database Lockouts . | . . . Manual . | . . . Terminals . | . . . Fabricators . | . . . Repair Stations . | . . . Recycling Units 4 | . 4 . Scanalyzers . | . . . Garrison Access . | . . . Terminal Hacks . | . . . Fabricator Hacks . | . . . Repair Station Hacks . | . . . Recycling Unit Hacks 1 | . 1 . Retrieve Components 1 | . 1 . Scanalyzer . | . . . Garrison Access Hacks . | . . . Unauthorized Hacks . | . . . Terminals . | . . . Fabricators . | . . . Repair Stations . | . . . Recycling Units . | . . . Scanalyzers . | . . . Garrison Access . | . . . Data Cores Recovered 1 | . 1 . Used . | . . . Hacking Detections 1 | . 1 . Full Trace Events . | . . . Feedback Events . | . . . Feedback Blocked . | . . . Robot Schematics Acquired . | . . . Robots Built . | . . . Authchips . | . . . Time . | . . . Total Robot Build Rating . | . . . Part Schematics Acquired . | . . . Parts Built . | . . . Authchips . | . . . Time . | . . . Total Part Build Rating . | . . . Parts Repaired . | . . . Time . | . . . Parts Recycled . | . . . Recycled Matter . | . . . Retrieved Matter . | . . . Retrieved Components . | . . . Parts Scanalyzed . | . . . Part Schematics Acquired . | . . . Parts Damaged . | . . . Bothacking | -11 -10 -10 ------------ Run | Yrd Mat Sub Used RIF Installer . | . . . Robots Hacked . | . . . Non-combat . | . . . Combat . | . . . Robot Hacks Applied . | . . . Relay Couplers Released . | . . . Fabnet Peak Effective % . | . . . Robots Rewired . | . . . Allies Hacked . | . . . Hacks Repelled . | . . . Allies | -11 -10 -10 -------- Run | Yrd Mat Sub Total Allies . | . . . Largest Group . | . . . Highest-Rated Group . | . . . Highest-Rated Ally . | . . . Total Orders . | . . . Ally Attacks . | . . . Total Damage . | . . . Kills . | . . . Allies Corrupted . | . . . Allies Melted . | . . . Intel | -11 -10 -10 ------- Run | Yrd Mat Sub Robot Analysis Total . | . . . Derelict Logs Recovered . | . . . Drone Launches . | . . . Drone Recoveries . | . . . Exploration | -11 -10 -10 ------------- Run | Yrd Mat Sub Turns Passed 705 | 70 571 64 Spaces Moved 215 | 52 145 18 Core 5 | 5 . . Treads . | . . . Legs 210 | 47 145 18 Wheels . | . . . Hover . | . . . Flight . | . . . Fastest Speed 50 | 50 120 190 Average Speed 138 | 113 141 190 Slowest Speed 190 | 120 190 190 Overloaded Moves . | . . . Propulsion Burnouts . | . . . Robots Hopped . | . . . Cave-ins Triggered . | . . . Exploration Rate (%) 10 | 5 23 3 Regions Visited 2 Branch Regions 1 Pre-discovered Areas . | . . . Known Exits Taken . | . . . Unknown Exits Taken 2 | 1 1 . Scrap Searched . | . . . Spaces Dug . | . . . Terrain Destroyed 7 | . 7 . Melee . | . . . Projectile . | . . . AOE 7 | . 7 . Terrain Rammed . | . . . Walls Destroyed . | . . . Machines Disabled . | . . . Actions | -11 -10 -10 --------- Run | Yrd Mat Sub Total 574 | 59 483 32 Wait 313 | . 311 2 Move 213 | 51 144 18 Hop . | . . . Pick Up 7 | 1 6 . Fast Attach 10 | 6 4 . Attach 1 | . . 1 Detach . | . . . Swap 6 | 1 5 . Drop 1 | . 1 . Fire 23 | . 12 11 Melee . | . . . Ram . | . . . Kick . | . . . Crush . | . . . Escape Stasis . | . . . Rewire . | . . . Trap . | . . . Miscellaneous . | . . . Route ------- -11/Scrapyard -10/Materials (discovered 2 exits: [*Mat] / [*Sub]) -10/Subcaves History --------- Turn | Location | Event 6 | -11/Scrapyard | Discovered new exit (range 15) 71 | -11/Scrapyard | Entered Materials 251 | -10/Materials | Discovered new exit (range 15) 300 | -10/Materials | Build established: Mutant 612 | -10/Materials | Discovered new exit (range 4) 621 | -10/Materials | System corruption reached 10% 642 | -10/Materials | Entered Subcaves 687 | -10/Subcaves | Core integrity fell below 50% 703 | -10/Subcaves | Core integrity fell below 20% 706 | -10/Subcaves | Destroyed by KV-JZU(R) with Subdweller Beam Cannon Last Messages --------------- 00630_ System corrupted: Aluminum Leg fused. 00631_ Acquired Sml. Laser. 00631_ U-05 Engineer builds a Wall. 00636_ Acquired Aluminum Leg. 00641_ U-05 Engineer builds a Wall. 00641_ Acquired Grenade Launcher. LOCATION=UNKNOWN AMBIENT_HEAT=-10 GOAL=ESCAPE 00644_ Acquired 13 matter. 00646_ Acquired 7 matter. 00654_ Acquired 6 matter. 00658_ System corrupted: Energy discharge (-52). 00674_ System corrupted: Heat flow error (+158). 00686_ Sml. Laser destroyed. 00688_ Sub. Power Source melted. 00688_ EN-4HG(R) destroyed. 00690_ Imp. Heat Sink destroyed. 00694_ Subatomizers dissect the Sub. Machine Gun. 00699_ KV-JZU(R) affixes Scrap Shield Fragment to Scrap Shield. Map ----- +----------------------------------------------------+ | ?????????????????????????????????????????????????? | | ?????????????????????????????????????????????????? | | ?????????????????????????????????????????????????? | | ?????????????????????????????????????????????????? | | ?????????????????????????????????????????????????? | | ?????????????????????????????????????????????????? | | ?????????????????????????????????????????????????? | | ??????????????? ????????????????????????????????? | | ??????????????" ???????????????????????????????? | | ?????????????? ??????????????????????????????? | | ?????????????#" #?##??????????????????????????? | | ?????????????# ## ??????????????????????????? | | ?????????????# ??????????????????????????? | | ???????????????? ??###??###???????????????? | | ??????????????????# ?## ### ##??????????????? | | ??????????????????#% ## ##?????????????? | | ???????????????????# #?????????????? | | ???????????????????## # #?????????????? | | ???????????????????##??## # #?????????????? | | ?????????????????### #??# ## #?????????????? | | ???????????????# %% #?# ## #?????????????? | | ???????????????# ## ### #????????????? | | ??????????????# [ ##?? #???????????? | | ?????????????# % % #%R #??? ##???????????? | | ?????????????## ?##?# ## ##????????????? | | ??????????????#????????##@ ##?????????????? | | ???????????????????????# ######??????????????? | | ?????????????????????? % ##???????????????????? | | ????????????????????? ;#????????????????????? | | ???????????????????? ###????????????????????? | | ?????????????????? #??????????????????????? | | ?????????????????## ###??????????????????????? | | ?????????????????# ## ?????????????????????????? | | ?????????????????# ?# #?????????????????????????? | | ?????????????????# ?? ??????????????????????????? | | ????????????????? ??? ??????????????????????????? | | ????????????????#???## ??????????????????????????? | | ?????????????????????#???????????????????????????? | | ?????????????????????????????????????????????????? | | ?????????????????????????????????????????????????? | | ?????????????????????????????????????????????????? | | ?????????????????????????????????????????????????? | | ?????????????????????????????????????????????????? | | ?????????????????????????????????????????????????? | | ?????????????????????????????????????????????????? | | ?????????????????????????????????????????????????? | | ?????????????????????????????????????????????????? | | ?????????????????????????????????????????????????? | | ?????????????????????????????????????????????????? | | ?????????????????????????????????????????????????? | +----------------------------------------------------+ Best States ------------- Heat Dissipation 39 Energy Generation 10 Energy Capacity 250 Matter Stores 300 Matter Capacity 300 Sight Range 16 Terrain Scan Density 10 Evasion (%) 55 Offensive Hacking 10 Item Schematics ----------------- None Robot Schematics ------------------ None Fabricated ------------ Nothing Alien Tech Used ----------------- None Achievements -------------- None Challenges ------------ None Game ------ Seed ZioniteCoreNeutralizer Manual? 0 Play Time 00:02:51 Cumulative 200.1 hours Start 2024.10.30 @ 21:46:54 End 2024.10.30 @ 21:49:26 Sessions 1 Manual Loads 0 Difficulty Rogue Special Mode None Game No. 388 Rogue 388 Adventurer 0 Explorer 0 Win Type - Total 0 Types 0/0/0/0/0/0/0/0/0 Lore% 42 Gallery% 64 Achievement% 48 Wizard Run 0 Options --------- Layout 0 ASCII 0 Keyboard 1 Movement Numpad Keybinds 0 Fullscreen 2 Font 18/X11 Map View 76x50 Zoom Use 0% Tactical HUD 1 Map Filters NONE Filters NONE Steam 1 RUN: 2d1967be-3abe-4ad9-8d7c-84badabf6e1e